fUST/lending_fUST_20250616
["ID","MTS","AMOUNT","RATE_DAILY","PERIOD"]
[366070732,1750049248805,-519.05044431,0.00021917,4]
[366070733,1750049248828,-460.0,0.00021917,4]
[366070734,1750049248849,-245.80868566,0.00021917,4]
[366070735,1750049248874,-400.0,0.00021917,4]
[366070736,1750049248894,-464.84856282,0.00021917,4]
[366070737,1750049248915,-360.19973173,0.00021917,4]
[366070768,1750049432636,-942.66,0.00021547,2]
[366070769,1750049432646,-300.0,0.00021697,2]
[366070770,1750049432655,-155.0,0.00021697,2]
[366070771,1750049432664,-1200.0,0.00021697,2]
[366070772,1750049432673,-4400.20066875,0.00021698,2]
[366070773,1750049432682,-160.0,0.00021698,2]
[366070774,1750049432692,-835.67987521,0.00021698,2]
[366070775,1750049432701,-160.0,0.00021698,2]
[366070776,1750049432710,-157.85152503,0.00021817,2]
[366070777,1750049432720,-99.80026827,0.00021917,4]
[366070778,1750049432729,-445.80869005,0.00021917,4]
[366070779,1750049432739,-500.0,0.00021917,4]
[366070780,1750049432749,-440.58229194,0.00021917,4]
[366070781,1750049432758,-460.0,0.00021917,4]
[366070782,1750049432768,-460.0,0.00021917,2]
[366070783,1750049432778,-474.98271925,0.00021917,4]
[366070784,1750049432787,-231.83217611,0.00021917,4]
[366070795,1750049438389,-424.54874296,0.00021698,2]
[366070796,1750049438400,-205.33875793,0.00021917,4]
[366070797,1750049438410,-491.1897133,0.00021917,4]
[366070798,1750049438420,-500.0,0.00021917,4]
[366070799,1750049438430,-500.0,0.00021917,4]
[366070800,1750049438440,-452.58512207,0.00021917,4]
[366070801,1750049438451,-317.53820694,0.00021917,4]
[366070802,1750049438461,-472.08439339,0.00021917,4]
[366070803,1750049438471,-460.0,0.00021917,4]
[366070804,1750049438483,-577.78141999,0.00021917,4]
[366070805,1750049438493,-460.0,0.00021917,4]
[366070806,1750049438503,-495.18554182,0.00021917,4]
[366070807,1750049438512,-505.23362531,0.00021917,4]
[366070808,1750049438523,-834.96,0.00021917,4]
[366070809,1750049438533,-460.0,0.00021917,4]
[366070810,1750049438542,-503.38263904,0.00021917,4]
[366070811,1750049438553,-488.89865728,0.00021917,4]
[366070812,1750049438564,-460.0,0.00021917,4]
[366070814,1750049438574,-815.43,0.00021917,4]
[366070816,1750049438583,-488.70675654,0.00021917,4]
[366070817,1750049438593,-460.0,0.00021917,4]
[366070819,1750049438603,-440.0,0.00021917,4]
[366070821,1750049438612,-263.01650143,0.00021917,4]
[366070823,1750049438622,-454.92568411,0.00021917,4]
[366070825,1750049438631,-451.08750129,0.00021917,4]
[366070827,1750049438641,-362.13425353,0.00021917,4]
[366070829,1750049438651,-460.0,0.00021917,4]
[366070831,1750049438660,-460.0,0.00021917,4]
[366070833,1750049438669,-460.0,0.00021917,4]
[366070835,1750049438679,-477.72519716,0.00021917,4]
[366070837,1750049438688,-470.90899527,0.00021917,4]
[366070839,1750049438699,-460.0,0.00021917,4]
[366070841,1750049438708,-460.0,0.00021917,4]
[366070842,1750049438718,-476.98201543,0.00021917,4]
[366070844,1750049438727,-504.79974989,0.00021917,4]
[366070846,1750049438736,-460.0,0.00021917,4]
[366070848,1750049438746,-465.48260117,0.00021917,4]
[366070850,1750049438757,-460.0,0.00021917,4]
[366070851,1750049438768,-460.0,0.00021917,4]
[366070852,1750049438777,-460.0,0.00021917,4]
[366070853,1750049438787,-455.16758332,0.00021917,4]
[366070854,1750049438796,-460.0,0.00021917,4]
[366070855,1750049438805,-460.0,0.00021917,4]
[366070856,1750049438815,-584.85768652,0.00021917,4]
[366070857,1750049438825,-460.0,0.00021917,4]
[366070858,1750049438834,-460.0,0.00021917,4]
[366070859,1750049438844,-460.0,0.00021917,4]
[366070860,1750049438853,-500.0,0.00021917,4]
[366070861,1750049438863,-273.98373427,0.00021917,4]
[366070862,1750049438872,-527.47004693,0.00021917,4]
[366070863,1750049438881,-460.43965173,0.00021917,4]
[366070864,1750049438890,-460.0,0.00021917,4]
[366070865,1750049438899,-460.0,0.00021917,4]
[366070866,1750049438909,-453.39091187,0.00021917,4]
[366070867,1750049438918,-460.0,0.00021917,4]
[366070868,1750049438928,-460.0,0.00021917,4]
[366070869,1750049438937,-460.0,0.00021917,4]
[366070870,1750049438947,-477.68675429,0.00021917,4]
[366070871,1750049438958,-306.73726303,0.00021917,4]
[366070872,1750049438968,-638.99716648,0.00022108,2]
[366070873,1750049438978,-501.68685801,0.00022108,2]
[366070874,1750049438988,-2158.05994643,0.00022143,2]
[366070875,1750049439001,-460.0,0.00022191,2]
[366070876,1750049439013,-460.0,0.00022191,4]
[366070877,1750049439024,-458.31317039,0.00022191,4]
[366070878,1750049439034,-834.96,0.00022191,4]
[366070879,1750049439044,-460.0,0.00022191,4]
[366070880,1750049439053,-815.43,0.00022191,4]
[366070881,1750049439064,-460.0,0.00022191,4]
[366070882,1750049439074,-493.17144947,0.00022191,4]
[366070883,1750049439085,-497.15823727,0.00022191,4]
[366070884,1750049439095,-485.15065747,0.00022191,4]
[366070885,1750049439105,-201.70322955,0.00022191,4]
[366070886,1750049439115,-460.0,0.00022191,4]
[366070887,1750049439127,-460.0,0.00022191,4]
[366070888,1750049439137,-460.0,0.00022191,4]
[366070889,1750049439149,-460.0,0.00022191,4]
[366070890,1750049439160,-460.0,0.00022191,4]
[366070891,1750049439170,-460.0,0.00022191,4]
[366070892,1750049439179,-460.0,0.00022191,4]
[366070893,1750049439188,-460.0,0.00022191,4]
[366070894,1750049439198,-460.0,0.00022191,4]
[366070895,1750049439208,-197.06690157,0.000222,69]
[366070896,1750049439217,-500.66384144,0.00022209,2]
[366070897,1750049439227,-501.180375,0.00022209,2]
[366070898,1750049439237,-335.99761941,0.00022288,2]
[366070899,1750049439247,-157.85152502,0.0002233,2]
[366070900,1750049439257,-503.99013325,0.00022438,2]
[366070901,1750049439266,-504.09730674,0.00022438,2]
[366070902,1750049439276,-460.0,0.00022465,2]
[366070903,1750049439286,-460.0,0.00022465,4]
[366070904,1750049439295,-834.96,0.00022465,4]
[366070905,1750049439305,-460.0,0.00022465,4]
[366070906,1750049439315,-815.43,0.00022465,4]
[366070907,1750049439325,-460.0,0.00022465,4]
[366070908,1750049439334,-460.0,0.00022465,4]
[366070909,1750049439345,-460.0,0.00022465,4]
[366070910,1750049439354,-460.0,0.00022465,4]
[366070911,1750049439364,-460.0,0.00022465,4]
[366070912,1750049439373,-460.0,0.00022465,4]
[366070913,1750049439383,-257.96,0.00022465,4]
[366070914,1750049439393,-460.0,0.00022465,4]
[366070915,1750049439402,-519.98328039,0.00022506,4]
[366070916,1750049439411,-339.92893465,0.00022521,2]
[366070917,1750049439421,-460.0,0.00022739,2]
[366070918,1750049439430,-460.0,0.00022739,4]
[366070919,1750049439441,-834.96,0.00022739,4]
[366070920,1750049439452,-460.0,0.00022739,4]
[366070921,1750049439461,-815.43,0.00022739,4]
[366070922,1750049439471,-460.0,0.00022739,4]
[366070923,1750049439481,-460.0,0.00022739,4]
[366070924,1750049439493,-460.0,0.00022739,4]
[366070925,1750049439504,-460.0,0.00022739,4]
[366070926,1750049439514,-460.0,0.00022739,4]
[366070927,1750049439524,-460.0,0.00022739,4]
[366070928,1750049439534,-460.0,0.00022739,4]
[366070929,1750049439544,-368.42278044,0.00022763,2]
[366070930,1750049439553,-157.85152502,0.00022843,2]
[366070931,1750049439563,-239.64954421,0.00022911,2]
[366070932,1750049439573,-500.0,0.00022923,2]
[366070933,1750049439582,-160.0,0.00022923,2]
[366070934,1750049439591,-500.0,0.00022923,2]
[366070935,1750049439601,-207.4,0.00022924,2]
[366070936,1750049439611,-5000.0,0.00022924,2]
[366070937,1750049439620,-500.0,0.00022924,2]
[366070938,1750049439630,-500.0,0.00022924,2]
[366070939,1750049439639,-500.0,0.00022924,2]
[366070940,1750049439649,-500.0,0.00022924,2]
[366070941,1750049439658,-533.47031743,0.00022924,2]
[366070942,1750049439668,-8429.41549255,0.00022924,2]
[366070943,1750049439682,-981.51225042,0.00022924,2]
[366070969,1750049440520,-2292.36087588,0.00022924,2]
[366070971,1750049440535,-904.4432318,0.00022924,2]
[366070987,1750049440683,-2700.61906415,0.00022924,2]
[366070989,1750049440692,-325.34684338,0.00022942,2]
[366070991,1750049440702,-7000.0,0.00023,2]
[366070993,1750049440711,-783.0,0.00023003,10]
[366070995,1750049440720,-460.0,0.00023013,2]
[366070997,1750049440730,-460.0,0.00023013,4]
[366070999,1750049440739,-834.96,0.00023013,4]
[366071001,1750049440747,-460.0,0.00023013,4]
[366071002,1750049440757,-460.0,0.00023013,4]
[366071003,1750049440766,-460.0,0.00023013,4]
[366071004,1750049440775,-460.0,0.00023013,4]
[366071006,1750049440784,-460.0,0.00023013,4]
[366071008,1750049440794,-460.0,0.00023013,4]
[366071010,1750049440804,-394.01676888,0.00023013,4]
[366071012,1750049440814,-460.0,0.00023013,4]
[366071013,1750049440823,-156.59,0.00023277,10]
[366071015,1750049440832,-460.0,0.00023287,2]
[366071017,1750049440842,-834.96,0.00023287,4]
[366071019,1750049440852,-460.0,0.00023287,4]
[366071021,1750049440861,-460.0,0.00023287,4]
[366071023,1750049440871,-460.0,0.00023287,4]
[366071025,1750049440881,-446.11697404,0.00023287,4]
[366071027,1750049440891,-460.0,0.00023287,4]
[366071029,1750049440901,-460.0,0.00023287,4]
[366071031,1750049440910,-153.0,0.00023288,2]
[366071033,1750049440919,-153.0,0.00023288,2]
[366071035,1750049440929,-172.0790001,0.00023288,2]
[366071037,1750049440938,-157.85152502,0.00023356,2]
[366071039,1750049440949,-337.037282,0.00023471,3]
[366071041,1750049440959,-5000.0,0.00023472,2]
[366071043,1750049440968,-502.20139601,0.00023483,2]
[366071045,1750049440977,-501.26699389,0.00023483,2]
[366071047,1750049440987,-514.0648878,0.00023483,2]
[366071049,1750049440996,-500.50120501,0.00023483,2]
[366071051,1750049441011,-500.0,0.00023483,2]
[366071053,1750049441021,-504.08159758,0.00023483,2]
[366071055,1750049441030,-502.96162134,0.00023483,2]
[366071057,1750049441040,-600.0,0.00023483,2]
[366071059,1750049441049,-503.99533734,0.00023483,2]
[366071061,1750049441060,-500.54257906,0.00023483,2]
[366071063,1750049441069,-505.3628712,0.00023483,2]
[366071065,1750049441079,-503.38901965,0.00023483,2]
[366071067,1750049441089,-1885.33,0.00023505,2]
[366071069,1750049441098,-460.0,0.00023561,2]
[366071071,1750049441107,-834.96,0.00023561,4]
[366071073,1750049441117,-460.0,0.00023561,4]
[366071075,1750049441126,-460.0,0.00023561,4]
[366071077,1750049441135,-460.0,0.00023561,4]
[366071079,1750049441145,-460.0,0.00023561,4]
[366071081,1750049441154,-420.0,0.00023577,2]
[366071083,1750049441163,-240.0,0.00023585,2]
[366071085,1750049441174,-501.25705712,0.0002362,2]
[366071087,1750049441183,-502.00418088,0.0002362,2]
[366071089,1750049441193,-501.94940115,0.0002362,2]
[366071091,1750049441203,-503.95850514,0.0002362,2]
[366071093,1750049441212,-460.0,0.00023835,2]
[366071095,1750049441223,-834.96,0.00023835,4]
[366071097,1750049441233,-460.0,0.00023835,4]
[366071099,1750049441243,-460.0,0.00023835,4]
[366071101,1750049441253,-460.0,0.00023835,4]
[366071103,1750049441264,-460.0,0.00023835,4]
[366071105,1750049441274,-157.85152502,0.00023869,2]
[366071107,1750049441283,-526.86,0.000239,2]
[366071109,1750049441293,-502.91797516,0.0002396,2]
[366071111,1750049441302,-502.11019355,0.0002396,2]
[366071113,1750049441312,-501.35361826,0.0002396,2]
[366071115,1750049441322,-504.81305792,0.0002396,2]
[366071117,1750049441331,-503.80708916,0.0002396,2]
[366071119,1750049441341,-501.7062189,0.0002396,2]
[366071121,1750049441351,-238.1723161,0.00023973,2]
[366071123,1750049441361,-6500.0,0.00024,2]
[366071125,1750049441371,-7000.0,0.00024,7]
[366071127,1750049441380,-5000.0,0.0002402,2]
[366071129,1750049441391,-1000.0,0.00024031,2]
[366071131,1750049441400,-1200.0,0.00024031,2]
[366071133,1750049441410,-191.0,0.00024106,2]
[366071135,1750049441420,-964.0,0.00024107,2]
[366071137,1750049441430,-653.0,0.00024107,2]
[366071139,1750049441441,-2160.0,0.00024107,2]
[366071141,1750049441454,-406.0,0.00024107,2]
[366071143,1750049441465,-242.386,0.00024107,2]
[366071145,1750049441475,-197.197,0.00024107,2]
[366071147,1750049441486,-460.0,0.00024109,2]
[366071149,1750049441496,-834.96,0.00024109,4]
[366071151,1750049441506,-153.7134613,0.00024109,4]
[366071153,1750049441516,-460.0,0.00024109,4]
[366071155,1750049441525,-460.0,0.00024109,4]
[366071157,1750049441535,-460.0,0.00024109,4]
[366071160,1750049441545,-153.0,0.0002411,2]
[366071162,1750049441555,-153.0,0.0002411,2]
[366071164,1750049441565,-153.0,0.0002411,2]
[366071165,1750049441575,-191.0,0.0002412,2]
[366071168,1750049441584,-215.0738,0.00024293,2]
[366071170,1750049441594,-160.0,0.00024293,2]
[366071172,1750049441603,-157.85152502,0.00024382,2]
[366071174,1750049441614,-460.0,0.00024383,2]
[366071176,1750049441623,-834.96,0.00024383,4]
[366071178,1750049441635,-460.0,0.00024383,4]
[366071180,1750049441646,-460.0,0.00024383,4]
[366071182,1750049441656,-460.0,0.00024383,4]
[366071184,1750049441665,-153.0,0.00024384,2]
[366071186,1750049441676,-153.0,0.00024384,2]
[366071188,1750049441686,-153.0,0.00024384,2]
[366071190,1750049441695,-153.0,0.00024384,2]
[366071192,1750049441705,-5000.0,0.00024568,2]
[366071194,1750049441715,-1500.0,0.00024579,2]
[366071196,1750049441725,-1800.0,0.00024579,2]
[366071198,1750049441734,-191.0,0.00024599,2]
[366071200,1750049441743,-191.0,0.00024629,2]
[366071202,1750049441752,-460.0,0.00024657,2]
[366071204,1750049441762,-834.96,0.00024657,4]
[366071206,1750049441771,-460.0,0.00024657,4]
[366071208,1750049441781,-460.0,0.00024657,4]
[366071209,1750049441790,-460.0,0.00024657,4]
[366071212,1750049441800,-533.46,0.00024667,4]
[366071214,1750049441810,-151.0,0.00024673,7]
[366071216,1750049441824,-151.0,0.00024673,7]
[366071218,1750049441834,-151.0,0.00024673,7]
[366071220,1750049441845,-191.0,0.00024696,2]
[366071222,1750049441855,-151.0,0.000247,9]
[366071224,1750049441866,-3493.28203502,0.000247,2]
[366071226,1750049441876,-160.0,0.00024742,2]
[366071228,1750049441886,-180.10350408,0.00024768,2]
[366071230,1750049441896,-151.0,0.00024768,2]
[366071232,1750049441905,-852.385745,0.00024772,3]
[366071234,1750049441915,-152.05773035,0.00024773,2]
[366071236,1750049441924,-502.39868201,0.00024773,2]
[366071238,1750049441934,-3493.282035,0.00024798,2]
[366071240,1750049441944,-460.0,0.00024799,4]
[366071242,1750049441953,-460.0,0.00024799,4]
[366071244,1750049441963,-66612.08477294,0.000248,2]
[366071246,1750049441977,-1394.32190313,0.000248,2]
[366071404,1750049443545,-460.0,0.00021917,4]
[366071406,1750049443555,-460.0,0.00022191,4]
[366071408,1750049443565,-460.0,0.00022465,4]
[366071410,1750049443576,-6322.077447,0.000248,2]
[366071413,1750049443597,-2710.62,0.000248,2]
[366071655,1750049446615,-274.18,0.00022739,4]
[366071657,1750049446625,-4367.32143211,0.000248,2]
[366072025,1750049913037,161.847446,0.00013699,2]
[366072035,1750050127584,970512.04287307,0.00024997,60]
[366072070,1750050406904,999.0,0.00019,2]
[366072072,1750050434138,-5000.0,0.0002052,2]
[366072073,1750050434162,-306.4356689,0.00020727,2]
[366072074,1750050434188,-1200.0,0.00020827,2]
[366072075,1750050434380,-300.0,0.00020827,2]
[366072076,1750050434413,-300.0,0.00020828,2]
[366072077,1750050434435,-300.0,0.00020828,2]
[366072078,1750050434457,-300.0,0.00020828,2]
[366072079,1750050434480,-593.3401252,0.00020828,2]
[366072080,1750050434502,-8595.03655365,0.00020829,2]
[366072089,1750050632745,-734.48019535,0.00020829,2]
[366072090,1750050632855,-6280.532611,0.00020829,2]
[366072091,1750050632865,-300.0,0.00020863,2]
[366072092,1750050632875,-1687.3775156,0.00020866,2]
[366072094,1750050633044,-1018.68,0.00021501,2]
[366072095,1750050633055,-160.0,0.00021809,2]
[366072096,1750050633065,-835.67987521,0.00021809,2]
[366072097,1750050633076,-160.0,0.00021809,2]
[366072098,1750050633086,-213.36025772,0.00021809,2]
[366072099,1750050633096,-160.0,0.00021809,2]
[366072100,1750050633106,-160.0,0.00021809,2]
[366072101,1750050633117,-160.0,0.00021809,2]
[366072102,1750050633127,-134.98792643,0.0002181,2]
[366072103,1750050633140,-289.56081653,0.0002181,2]
[366072104,1750050633150,-162.92712045,0.00021812,2]
[366072105,1750050633163,-15.51287955,0.00021812,2]
[366072106,1750050633173,-3126.72824852,0.00021915,2]
[366072107,1750050633187,-3070.16445973,0.00021915,2]
[366072108,1750050633198,-591.15587796,0.00021916,2]
[366072109,1750050633208,-500.0,0.00021916,2]
[366072110,1750050633218,-500.0,0.00021916,2]
[366072111,1750050633228,-243.5341355,0.00021916,2]
[366072112,1750050633238,-500.0,0.00021916,2]
[366072113,1750050633248,-500.0,0.00021916,2]
[366072114,1750050633258,-500.0,0.00021916,2]
[366072115,1750050633268,-470.90187008,0.00021917,4]
[366072116,1750050633278,-480.95964456,0.00021917,4]
[366072117,1750050633288,-484.480559,0.00021917,4]
[366072118,1750050633298,-408.00899481,0.00021917,4]
[366072119,1750050633307,-486.25260624,0.00021917,4]
[366072120,1750050633318,-579.75555739,0.00021917,4]
[366072121,1750050633327,-460.0,0.00021917,4]
[366072122,1750050633337,-458.80006734,0.00021917,4]
[366072123,1750050633347,-460.0,0.00021917,4]
[366072124,1750050633356,-414.87676831,0.00021917,4]
[366072125,1750050633367,-460.0,0.00021917,4]
[366072126,1750050633377,-504.57082307,0.00021917,4]
[366072127,1750050633387,-496.19,0.00021917,4]
[366072128,1750050633398,-460.0,0.00021917,4]
[366072129,1750050633408,-460.0,0.00021917,4]
[366072130,1750050633417,-471.59765646,0.00021917,4]
[366072131,1750050633427,-423.15079204,0.00021917,4]
[366072132,1750050633438,-484.65242707,0.00021917,4]
[366072133,1750050633448,-409.91387322,0.00021917,4]
[366072134,1750050633457,-473.55758242,0.00021917,4]
[366072135,1750050633469,-403.48253947,0.00021917,4]
[366072136,1750050633479,-460.0,0.00021917,4]
[366072137,1750050633489,-496.5569828,0.00021917,4]
[366072138,1750050633499,-412.4900776,0.00021917,4]
[366072139,1750050633510,-442.6132801,0.00021917,4]
[366072140,1750050633520,-561.24806252,0.00021917,4]
[366072142,1750050633529,-474.11611294,0.00021917,4]
[366072143,1750050633540,-475.83886551,0.00021917,4]
[366072144,1750050633551,-460.0,0.00021917,2]
[366072146,1750050633561,-479.11671238,0.00021917,4]
[366072148,1750050633572,-460.0,0.00021917,4]
[366072150,1750050633582,-441.305233,0.00021917,4]
[366072152,1750050633592,-479.50851509,0.00021917,4]
[366072154,1750050633602,-401.39952005,0.00021917,4]
[366072156,1750050633612,-451.41553091,0.00021917,4]
[366072158,1750050633622,-460.0,0.00021917,4]
[366072160,1750050633632,-460.0,0.00021917,4]
[366072162,1750050633641,-470.52576955,0.00021917,4]
[366072164,1750050633651,-460.0,0.00021917,4]
[366072165,1750050633662,-437.12109076,0.00021917,4]
[366072167,1750050633671,-348.051752,0.00021917,4]
[366072169,1750050633681,-406.76339537,0.00021917,4]
[366072171,1750050633691,-234.33714037,0.00021917,4]
[366072173,1750050633701,-473.45493426,0.00021917,4]
[366072175,1750050633711,-278.98133858,0.00021917,4]
[366072177,1750050633721,-360.0,0.00021917,4]
[366072179,1750050633730,-460.0,0.00021917,4]
[366072181,1750050633742,-479.51036774,0.00021917,4]
[366072183,1750050633752,-460.0,0.00021917,4]
[366072185,1750050633762,-385.68139221,0.00021917,4]
[366072187,1750050633772,-460.0,0.00021917,4]
[366072189,1750050633782,-462.82461008,0.00021917,4]
[366072191,1750050633792,-471.31661519,0.00021917,4]
[366072193,1750050633801,-460.0,0.00021917,4]
[366072195,1750050633811,-460.0,0.00021917,4]
[366072197,1750050633820,-517.47467113,0.00021917,4]
[366072199,1750050633830,-460.0,0.00021917,4]
[366072201,1750050633839,-460.0,0.00021917,4]
[366072203,1750050633850,-497.47724813,0.00021917,4]
[366072205,1750050633860,-406.21466182,0.00021917,4]
[366072207,1750050633870,-460.0,0.00021917,4]
[366072209,1750050633884,-460.0,0.00021917,4]
[366072211,1750050633893,-545.06509276,0.00021917,4]
[366072213,1750050633904,-379.09793566,0.00021917,4]
[366072215,1750050633914,-359.31856555,0.00021917,4]
[366072217,1750050633924,-428.26222353,0.00021917,4]
[366072219,1750050633933,-460.0,0.00021917,4]
[366072221,1750050633943,-706.19,0.00021917,4]
[366072223,1750050633954,-460.0,0.00021917,4]
[366072225,1750050633964,-460.0,0.00021917,4]
[366072227,1750050633974,-460.0,0.00021917,4]
[366072229,1750050633984,-472.7366545,0.00021917,4]
[366072231,1750050633993,-373.33315859,0.00021917,4]
[366072232,1750050634003,-477.9223269,0.00021917,4]
[366072234,1750050634013,-443.96870786,0.00021917,4]
[366072236,1750050634022,-467.72839084,0.00021917,4]
[366072238,1750050634031,-460.0,0.00021917,4]
[366072239,1750050634042,-471.82359139,0.00021917,4]
[366072240,1750050634052,-460.0,0.00021917,4]
[366072241,1750050634063,-460.0,0.00021917,4]
[366072242,1750050634073,-460.0,0.00021917,4]
[366072243,1750050634082,-573.42495868,0.00021917,4]
[366072244,1750050634092,-460.0,0.00021917,4]
[366072245,1750050634101,-460.0,0.00021917,4]
[366072246,1750050634112,-458.61438106,0.00021917,4]
[366072247,1750050634121,-491.24394523,0.00021917,4]
[366072248,1750050634131,-460.0,0.00021917,4]
[366072249,1750050634140,-290.0,0.00021917,4]
[366072250,1750050634150,-460.0,0.00021917,4]
[366072251,1750050634160,-460.0,0.00021917,4]
[366072252,1750050634170,-460.0,0.00021917,4]
[366072253,1750050634180,-460.0,0.00021917,4]
[366072254,1750050634189,-460.0,0.00021917,4]
[366072255,1750050634199,-434.14657949,0.00021917,4]
[366072256,1750050634209,-220.0,0.00021917,4]
[366072257,1750050634218,-460.0,0.00021917,4]
[366072258,1750050634228,-460.0,0.00021917,4]
[366072259,1750050634238,-460.0,0.00021917,4]
[366072260,1750050634249,-483.62288433,0.00021917,4]
[366072261,1750050634258,-460.0,0.00021917,4]
[366072262,1750050634267,-127.40460172,0.00021917,4]
[366072286,1750050638494,-254.32968299,0.00020415,2]
[366072288,1750050638507,-4745.67031701,0.00020415,2]
[366072290,1750050638518,-119.41314511,0.00021917,4]
[366072292,1750050638528,-293.87290817,0.00021917,4]
[366072295,1750050638548,-166.12709183,0.00021917,4]
[366072297,1750050638557,-460.0,0.00021917,4]
[366072299,1750050638567,-108.99285384,0.00021917,4]
[366072332,1750050638876,-351.00714616,0.00021917,4]
[366072334,1750050638890,-463.93162997,0.00021917,4]
[366072336,1750050638900,-460.0,0.00021917,4]
[366072338,1750050638910,-460.0,0.00021917,4]
[366072340,1750050638920,-468.70470039,0.00021917,4]
[366072342,1750050638930,-485.84237845,0.00021917,4]
[366072344,1750050638941,-393.69389322,0.00021917,4]
[366072346,1750050638950,-460.0,0.00021917,4]
[366072348,1750050638961,-445.36447847,0.00021917,4]
[366072350,1750050638971,-460.0,0.00021917,4]
[366072352,1750050638980,-473.294361,0.00021917,4]
[366072354,1750050638990,-460.0,0.00021917,4]
[366072356,1750050638999,-460.0,0.00021917,4]
[366072358,1750050639009,-481.33450272,0.00021917,4]
[366072360,1750050639019,-460.0,0.00021917,4]
[366072362,1750050639028,-170.08282841,0.00021917,4]
[366072364,1750050639038,-460.0,0.00021917,4]
[366072366,1750050639048,-499.79315287,0.00021917,4]
[366072368,1750050639057,-498.27864155,0.00021917,4]
[366072370,1750050639067,-460.0,0.00021917,4]
[366072372,1750050639077,-420.36975692,0.00021917,4]
[366072374,1750050639087,-334.40176849,0.00021917,4]
[366072377,1750050639102,-399.20656761,0.00021917,4]
[366072379,1750050639112,-460.0,0.00021917,4]
[366072381,1750050639122,-460.0,0.00021917,4]
[366072383,1750050639132,-474.25414622,0.00021917,4]
[366072385,1750050639142,-460.0,0.00021917,4]
[366072387,1750050639153,-474.06573376,0.00021917,4]
[366072389,1750050639162,-460.0,0.00021917,4]
[366072391,1750050639172,-460.0,0.00021917,4]
[366072393,1750050639182,-460.0,0.00021917,4]
[366072395,1750050639192,-166.0,0.00022,2]
[366072398,1750050639202,-164.0,0.00022,2]
[366072400,1750050639212,-339.38967874,0.00022037,2]
[366072402,1750050639222,-505.90908521,0.00022062,2]
[366072403,1750050639231,-500.0,0.00022062,2]
[366072405,1750050639241,-500.0,0.00022062,2]
[366072407,1750050639251,-258.79652619,0.00022062,2]
[366072410,1750050639261,-505.99461232,0.0002212,2]
[366072412,1750050639270,-437.67835116,0.0002212,2]
[366072414,1750050639280,-219.91,0.00022181,10]
[366072416,1750050639290,-460.0,0.00022191,4]
[366072418,1750050639300,-481.89854854,0.00022191,4]
[366072420,1750050639310,-496.19,0.00022191,4]
[366072422,1750050639320,-476.32806979,0.00022191,4]
[366072424,1750050639330,-498.28772256,0.00022191,4]
[366072426,1750050639339,-460.0,0.00022191,4]
[366072428,1750050639349,-460.0,0.00022191,2]
[366072430,1750050639359,-430.55966655,0.00022191,4]
[366072432,1750050639368,-479.11617992,0.00022191,4]
[366072434,1750050639378,-460.0,0.00022191,4]
[366072436,1750050639388,-460.0,0.00022191,4]
[366072438,1750050639398,-460.0,0.00022191,4]
[366072440,1750050639408,-460.0,0.00022191,4]
[366072442,1750050639418,-460.0,0.00022191,4]
[366072444,1750050639427,-706.19,0.00022191,4]
[366072446,1750050639436,-461.01546838,0.00022191,4]
[366072448,1750050639446,-408.91535049,0.00022191,4]
[366072450,1750050639455,-460.0,0.00022191,4]
[366072452,1750050639465,-428.35126705,0.00022191,4]